[Event "Late-Titled-Tuesday-Blitz-April-23-2024"]
[Site "Chess.com"]
[Date "2024.04.23"]
[Round "5"]
[White "Hirna2005"]
[Black "FuenfgegenWilly"]
[Result "1-0"]
[WhiteElo "2349"]
[BlackElo "2459"]
[TimeControl "180+1"]
[EndTime "14:55:55 PDT"]
[Termination "Hirna2005 won by checkmate"]

1. e4 {[%clk 0:02:54.5]} 1... c6 {[%clk 0:02:58.2]} 2. Nc3 {[%clk 0:02:54.1]}
2... g6 {[%clk 0:02:59.1]} 3. Nf3 {[%clk 0:02:52.8]} 3... Bg7 {[%clk 0:02:56.9]}
4. Bc4 {[%clk 0:02:51.5]} 4... d5 {[%clk 0:02:54.7]} 5. exd5 {[%clk 0:02:50.7]}
5... b5 {[%clk 0:02:55.6]} 6. Bb3 {[%clk 0:02:46.2]} 6... b4 {[%clk 0:02:56.5]}
7. Ne2 {[%clk 0:02:43.4]} 7... cxd5 {[%clk 0:02:56.2]} 8. d4 {[%clk 0:02:42.7]}
8... Nf6 {[%clk 0:02:55.2]} 9. O-O {[%clk 0:02:41.7]} 9... O-O {[%clk
0:02:54.2]} 10. Bd2 {[%clk 0:02:36.7]} 10... a5 {[%clk 0:02:49.6]} 11. a3 {[%clk
0:02:37]} 11... a4 {[%clk 0:02:50.1]} 12. Ba2 {[%clk 0:02:36.2]} 12... bxa3
{[%clk 0:02:51]} 13. bxa3 {[%clk 0:02:32.8]} 13... Nc6 {[%clk 0:02:41.4]} 14.
Rb1 {[%clk 0:02:30]} 14... Ba6 {[%clk 0:02:36.9]} 15. Re1 {[%clk 0:02:29.1]}
15... Ne4 {[%clk 0:02:33.1]} 16. c3 {[%clk 0:01:45.3]} 16... Qd6 {[%clk
0:02:30.7]} 17. Qc1 {[%clk 0:01:26.2]} 17... Rfb8 {[%clk 0:02:25.2]} 18. Rxb8+
{[%clk 0:01:19.5]} 18... Rxb8 {[%clk 0:02:25.3]} 19. Bf4 {[%clk 0:01:18.7]}
19... e5 {[%clk 0:02:22]} 20. dxe5 {[%clk 0:01:13.1]} 20... Nxe5 {[%clk
0:02:20.8]} 21. Ned4 {[%clk 0:01:04.2]} 21... Rc8 {[%clk 0:02:14.6]} 22. Nxe5
{[%clk 0:01:00.9]} 22... Bxe5 {[%clk 0:02:13.7]} 23. Bxe5 {[%clk 0:01:01]} 23...
Qxe5 {[%clk 0:02:14.3]} 24. f3 {[%clk 0:00:59]} 24... Bd3 {[%clk 0:01:37.8]} 25.
fxe4 {[%clk 0:00:49.8]} 25... Bxe4 {[%clk 0:01:38.7]} 26. Qe3 {[%clk 0:00:38]}
26... Qc7 {[%clk 0:01:36.4]} 27. c4 {[%clk 0:00:31.6]} 27... Qc5 {[%clk
0:01:21.3]} 28. cxd5 {[%clk 0:00:31.1]} 28... Bxd5 {[%clk 0:01:20.2]} 29. Bxd5
{[%clk 0:00:29.9]} 29... Qxd5 {[%clk 0:01:21.1]} 30. Nf3 {[%clk 0:00:29.8]}
30... Qa2 {[%clk 0:01:16.4]} 31. Re2 {[%clk 0:00:29.4]} 31... Qa1+ {[%clk
0:01:14.5]} 32. Kf2 {[%clk 0:00:30.1]} 32... Rb8 {[%clk 0:01:07.2]} 33. Qe5
{[%clk 0:00:29.1]} 33... Qxe5 {[%clk 0:01:01.8]} 34. Rxe5 {[%clk 0:00:29]} 34...
Rb2+ {[%clk 0:01:01]} 35. Re2 {[%clk 0:00:28.5]} 35... Rb3 {[%clk 0:01:01.4]}
36. Re3 {[%clk 0:00:28.9]} 36... Rb2+ {[%clk 0:01:01.8]} 37. Kg3 {[%clk
0:00:29.4]} 37... Kg7 {[%clk 0:01:01]} 38. Ne5 {[%clk 0:00:29.4]} 38... Kf6
{[%clk 0:01:00.3]} 39. Nd7+ {[%clk 0:00:28.7]} 39... Kg5 {[%clk 0:00:59.8]} 40.
Nc5 {[%clk 0:00:28.5]} 40... f5 {[%clk 0:00:58.2]} 41. Kf3 {[%clk 0:00:26.2]}
41... f4 {[%clk 0:00:56.1]} 42. Rd3 {[%clk 0:00:26]} 42... Kh4 {[%clk
0:00:52.2]} 43. Nxa4 {[%clk 0:00:24.4]} 43... g5 {[%clk 0:00:52.4]} 44. Nxb2
{[%clk 0:00:23.8]} 44... h5 {[%clk 0:00:50.9]} 45. Rd4 {[%clk 0:00:22.5]} 45...
g4+ {[%clk 0:00:50.1]} 46. Kxf4 {[%clk 0:00:22.8]} 46... g3 {[%clk 0:00:50.4]}
47. hxg3# {[%clk 0:00:23.1]} 1-0

[Event "Late-Titled-Tuesday-Blitz-April-23-2024"]
[Site "Chess.com"]
[Date "2024.04.23"]
[Round "5"]
[White "chess_sharparchitect"]
[Black "Cambek64"]
[Result "0-1"]
[WhiteElo "2238"]
[BlackElo "2521"]
[TimeControl "180+1"]
[EndTime "14:55:58 PDT"]
[Termination "Cambek64 won on time"]

1. c4 {[%clk 0:03:00.9]} 1... Nf6 {[%clk 0:02:48.1]} 2. Nc3 {[%clk 0:03:00.8]}
2... c6 {[%clk 0:02:42.1]} 3. e4 {[%clk 0:02:59.6]} 3... d6 {[%clk 0:02:40.3]}
4. Nf3 {[%clk 0:02:58.2]} 4... e5 {[%clk 0:02:40.2]} 5. d4 {[%clk 0:02:58.2]}
5... Nbd7 {[%clk 0:02:40.5]} 6. Be2 {[%clk 0:02:55.5]} 6... Be7 {[%clk
0:02:40.8]} 7. h3 {[%clk 0:02:54.4]} 7... O-O {[%clk 0:02:40.8]} 8. Be3 {[%clk
0:02:54.3]} 8... Qc7 {[%clk 0:02:41]} 9. Qc2 {[%clk 0:02:53.9]} 9... Re8 {[%clk
0:02:41.6]} 10. O-O {[%clk 0:02:53.7]} 10... Nf8 {[%clk 0:02:39]} 11. Rfe1
{[%clk 0:02:52.2]} 11... Ng6 {[%clk 0:02:39.2]} 12. Rad1 {[%clk 0:02:37.2]}
12... h6 {[%clk 0:02:39.2]} 13. b4 {[%clk 0:02:35.1]} 13... Nh7 {[%clk 0:02:39]}
14. c5 {[%clk 0:02:30.4]} 14... Ng5 {[%clk 0:02:25.9]} 15. Nxg5 {[%clk
0:02:16.2]} 15... Bxg5 {[%clk 0:02:24.9]} 16. cxd6 {[%clk 0:01:44.5]} 16... Qxd6
{[%clk 0:02:25.1]} 17. dxe5 {[%clk 0:01:44.3]} 17... Qxe5 {[%clk 0:02:25]} 18.
Bd4 {[%clk 0:01:44.7]} 18... Qe7 {[%clk 0:02:22.8]} 19. Bc5 {[%clk 0:01:33.7]}
19... Qf6 {[%clk 0:02:15.4]} 20. Rd6 {[%clk 0:01:24.7]} 20... Be6 {[%clk
0:02:13.9]} 21. Red1 {[%clk 0:01:08.6]} 21... Bf4 {[%clk 0:02:13.1]} 22. R6d3
{[%clk 0:01:05.2]} 22... Ne5 {[%clk 0:02:08.8]} 23. Bd4 {[%clk 0:01:04.8]} 23...
Qg5 {[%clk 0:02:06.1]} 24. Bxe5 {[%clk 0:01:01.7]} 24... Bxe5 {[%clk 0:02:05.8]}
25. b5 {[%clk 0:00:46.6]} 25... h5 {[%clk 0:02:03.6]} 26. bxc6 {[%clk
0:00:45.1]} 26... bxc6 {[%clk 0:02:04.2]} 27. Na4 {[%clk 0:00:29.2]} 27... Rac8
{[%clk 0:02:03.5]} 28. Nc5 {[%clk 0:00:29.1]} 28... h4 {[%clk 0:01:51.7]} 29.
Nxe6 {[%clk 0:00:27.4]} 29... Rxe6 {[%clk 0:01:49.2]} 30. Bg4 {[%clk 0:00:27]}
30... Rce8 {[%clk 0:01:44.2]} 31. Bxe6 {[%clk 0:00:25.8]} 31... Rxe6 {[%clk
0:01:44.5]} 32. Rf3 {[%clk 0:00:10.5]} 32... Rg6 {[%clk 0:01:42.3]} 33. g3
{[%clk 0:00:09.6]} 33... hxg3 {[%clk 0:01:41.3]} 34. fxg3 {[%clk 0:00:08.9]}
34... Bxg3 {[%clk 0:01:41.9]} 35. Kh1 {[%clk 0:00:05.2]} 35... Be5 {[%clk
0:01:35.4]} 36. Qf2 {[%clk 0:00:04.1]} 36... c5 {[%clk 0:01:29.1]} 37. Rxf7
{[%clk 0:00:04.1]} 37... Qh5 {[%clk 0:01:24.4]} 38. Rf8+ {[%clk 0:00:03.1]}
38... Kh7 {[%clk 0:01:23.5]} 39. Qf3 {[%clk 0:00:01.7]} 39... Qh4 {[%clk
0:01:18.4]} 40. Qf5 {[%clk 0:00:01.9]} 40... Bf6 {[%clk 0:01:07.7]} 0-1

[Event "Late-Titled-Tuesday-Blitz-April-23-2024"]
[Site "Chess.com"]
[Date "2024.04.23"]
[Round "5"]
[White "m_ezat"]
[Black "cristiano78"]
[Result "1-0"]
[WhiteElo "2610"]
[BlackElo "2244"]
[TimeControl "180+1"]
[EndTime "14:55:59 PDT"]
[Termination "m_ezat won by checkmate"]

1. d4 {[%clk 0:02:58.2]} 1... Nf6 {[%clk 0:02:56.4]} 2. Nc3 {[%clk 0:02:57.8]}
2... g6 {[%clk 0:02:55.8]} 3. h4 {[%clk 0:02:57.2]} 3... d6 {[%clk 0:02:54.3]}
4. e4 {[%clk 0:02:55.3]} 4... c6 {[%clk 0:02:52.9]} 5. h5 {[%clk 0:02:55.2]}
5... Nxh5 {[%clk 0:02:51.8]} 6. Rxh5 {[%clk 0:02:55.7]} 6... gxh5 {[%clk
0:02:51.9]} 7. Qxh5 {[%clk 0:02:55.3]} 7... Nd7 {[%clk 0:02:52.4]} 8. Bg5 {[%clk
0:02:52.9]} 8... Nf6 {[%clk 0:02:51.8]} 9. Bxf6 {[%clk 0:02:53]} 9... exf6
{[%clk 0:02:49.1]} 10. Bc4 {[%clk 0:02:53]} 10... Qe7 {[%clk 0:02:47.5]} 11.
O-O-O {[%clk 0:02:50.7]} 11... h6 {[%clk 0:02:42.2]} 12. Nf3 {[%clk 0:02:43.2]}
12... Rg8 {[%clk 0:02:38.1]} 13. e5 {[%clk 0:02:39.5]} 13... Bg4 {[%clk
0:02:33.9]} 14. Qh2 {[%clk 0:02:33.8]} 14... Bxf3 {[%clk 0:02:30.9]} 15. gxf3
{[%clk 0:02:20.8]} 15... dxe5 {[%clk 0:02:26.2]} 16. dxe5 {[%clk 0:02:20.6]}
16... Qxe5 {[%clk 0:02:21.9]} 17. f4 {[%clk 0:02:16.7]} 17... Qc5 {[%clk
0:02:13.7]} 18. Ne4 {[%clk 0:02:08.5]} 18... Qf5 {[%clk 0:02:07.2]} 19. f3
{[%clk 0:01:54.1]} 19... Rd8 {[%clk 0:02:05.2]} 20. Bxf7+ {[%clk 0:01:45.3]}
20... Kxf7 {[%clk 0:01:55.6]} 21. Rxd8 {[%clk 0:01:44.9]} 21... h5 {[%clk
0:01:55.5]} 22. a3 {[%clk 0:00:35]} 22... b6 {[%clk 0:01:44.4]} 23. Kb1 {[%clk
0:00:34.6]} 23... Be7 {[%clk 0:01:40.5]} 24. Nd6+ {[%clk 0:00:22.6]} 24... Bxd6
{[%clk 0:01:37.3]} 25. Rxd6 {[%clk 0:00:23.5]} 25... Qc5 {[%clk 0:01:33.3]} 26.
Rd1 {[%clk 0:00:18.1]} 26... Re8 {[%clk 0:01:19]} 27. Qh3 {[%clk 0:00:16.4]}
27... Re2 {[%clk 0:01:14]} 28. Qd7+ {[%clk 0:00:11.6]} 28... Re7 {[%clk
0:01:13.2]} 29. Qd3 {[%clk 0:00:09.4]} 29... f5 {[%clk 0:01:09.7]} 30. Qb3+
{[%clk 0:00:07.5]} 30... Kg7 {[%clk 0:01:06.5]} 31. Rd8 {[%clk 0:00:05.1]} 31...
Re1+ {[%clk 0:00:58.1]} 32. Ka2 {[%clk 0:00:04.6]} 32... Kf6 {[%clk 0:00:52.9]}
33. Qg8 {[%clk 0:00:04.5]} 33... Re7 {[%clk 0:00:44.1]} 34. Qg5+ {[%clk
0:00:04.3]} 34... Ke6 {[%clk 0:00:41.8]} 35. Qg6# {[%clk 0:00:04.5]} 1-0

[Event "Late-Titled-Tuesday-Blitz-April-23-2024"]
[Site "Chess.com"]
[Date "2024.04.23"]
[Round "5"]
[White "SipahiPower"]
[Black "grzechu96"]
[Result "0-1"]
[WhiteElo "2505"]
[BlackElo "2783"]
[TimeControl "180+1"]
[EndTime "14:56:00 PDT"]
[Termination "grzechu96 won on time"]

1. d4 {[%clk 0:02:55.1]} 1... d5 {[%clk 0:03:00.1]} 2. c4 {[%clk 0:02:54.9]}
2... e6 {[%clk 0:02:59.7]} 3. Nc3 {[%clk 0:02:55.3]} 3... c6 {[%clk 0:03:00.1]}
4. e4 {[%clk 0:02:55.3]} 4... dxe4 {[%clk 0:03:01]} 5. Nxe4 {[%clk 0:02:55.8]}
5... Bb4+ {[%clk 0:03:01.6]} 6. Bd2 {[%clk 0:02:56.3]} 6... Qxd4 {[%clk
0:03:02.2]} 7. Bxb4 {[%clk 0:02:56.5]} 7... Qxe4+ {[%clk 0:03:02.8]} 8. Be2
{[%clk 0:02:46.5]} 8... Na6 {[%clk 0:03:02.3]} 9. Ba5 {[%clk 0:02:41]} 9... b6
{[%clk 0:02:59.7]} 10. Qd6 {[%clk 0:02:31.4]} 10... Bd7 {[%clk 0:02:43.3]} 11.
Bc3 {[%clk 0:02:27.4]} 11... f6 {[%clk 0:02:16.5]} 12. O-O-O {[%clk 0:01:56.5]}
12... O-O-O {[%clk 0:02:16.4]} 13. c5 {[%clk 0:01:17.4]} 13... Nxc5 {[%clk
0:02:00.8]} 14. b4 {[%clk 0:01:15.3]} 14... Nb7 {[%clk 0:01:54.9]} 15. Ba6
{[%clk 0:01:14.7]} 15... Nh6 {[%clk 0:01:51.1]} 16. Nf3 {[%clk 0:00:50.3]} 16...
e5 {[%clk 0:01:48.8]} 17. Rhe1 {[%clk 0:00:30.5]} 17... Qg4 {[%clk 0:01:33.1]}
18. b5 {[%clk 0:00:30.1]} 18... Qc4 {[%clk 0:00:29.6]} 19. Kb2 {[%clk
0:00:11.5]} 19... Nf5 {[%clk 0:00:29.7]} 20. Qd2 {[%clk 0:00:07.1]} 20... Be6
{[%clk 0:00:29.3]} 21. bxc6 {[%clk 0:00:03.8]} 21... Qxa2+ {[%clk 0:00:25.3]}
22. Kc1 {[%clk 0:00:04.3]} 22... Qxa6 {[%clk 0:00:25.9]} 23. cxb7+ {[%clk
0:00:04.2]} 23... Qxb7 {[%clk 0:00:25.2]} 24. Qc2 {[%clk 0:00:04]} 24... Kb8
{[%clk 0:00:24.4]} 25. Nxe5 {[%clk 0:00:04.5]} 25... fxe5 {[%clk 0:00:23.6]} 26.
Bxe5+ {[%clk 0:00:04.9]} 26... Ka8 {[%clk 0:00:24.1]} 0-1

[Event "Late-Titled-Tuesday-Blitz-April-23-2024"]
[Site "Chess.com"]
[Date "2024.04.23"]
[Round "5"]
[White "Licancabur"]
[Black "Bykov_Egor"]
[Result "1-0"]
[WhiteElo "2473"]
[BlackElo "2603"]
[TimeControl "180+1"]
[EndTime "14:56:02 PDT"]
[Termination "Licancabur won by resignation"]

1. d4 {[%clk 0:03:00.9]} 1... Nf6 {[%clk 0:02:55.9]} 2. Bg5 {[%clk 0:03:00.6]}
2... d5 {[%clk 0:02:53.7]} 3. e3 {[%clk 0:02:58]} 3... c5 {[%clk 0:02:53.3]} 4.
Bxf6 {[%clk 0:02:54.8]} 4... gxf6 {[%clk 0:02:53.1]} 5. dxc5 {[%clk 0:02:54]}
5... Nc6 {[%clk 0:02:46.4]} 6. a3 {[%clk 0:02:43.3]} 6... e5 {[%clk 0:02:18.7]}
7. b4 {[%clk 0:02:37.7]} 7... a5 {[%clk 0:02:10]} 8. Nc3 {[%clk 0:02:13.9]} 8...
axb4 {[%clk 0:01:49]} 9. axb4 {[%clk 0:02:13.4]} 9... Rxa1 {[%clk 0:01:48.1]}
10. Qxa1 {[%clk 0:02:13.7]} 10... Nxb4 {[%clk 0:01:45.6]} 11. Qa4+ {[%clk
0:02:12.9]} 11... Nc6 {[%clk 0:01:44.3]} 12. Bb5 {[%clk 0:02:12.5]} 12... Qd7
{[%clk 0:01:27.6]} 13. Nge2 {[%clk 0:01:27.1]} 13... Bxc5 {[%clk 0:01:25.1]} 14.
O-O {[%clk 0:01:26.1]} 14... O-O {[%clk 0:01:10]} 15. Rd1 {[%clk 0:01:24.2]}
15... d4 {[%clk 0:00:51.1]} 16. exd4 {[%clk 0:01:09.3]} 16... exd4 {[%clk
0:00:33.8]} 17. Ne4 {[%clk 0:01:06.8]} 17... Be7 {[%clk 0:00:29.8]} 18. Rxd4
{[%clk 0:00:51.1]} 18... Qe6 {[%clk 0:00:17.5]} 19. Bxc6 {[%clk 0:00:36.2]}
19... bxc6 {[%clk 0:00:16.2]} 20. Nf4 {[%clk 0:00:33]} 20... Qe5 {[%clk
0:00:14.9]} 21. Nd3 {[%clk 0:00:32]} 21... Qh5 {[%clk 0:00:13]} 22. h3 {[%clk
0:00:20.2]} 22... c5 {[%clk 0:00:13.2]} 23. Ndxc5 {[%clk 0:00:15.8]} 23... Bxc5
{[%clk 0:00:12.5]} 24. Nxf6+ {[%clk 0:00:15.9]} 24... Kh8 {[%clk 0:00:10.7]} 25.
Nxh5 {[%clk 0:00:16.6]} 1-0

[Event "Late-Titled-Tuesday-Blitz-April-23-2024"]
[Site "Chess.com"]
[Date "2024.04.23"]
[Round "5"]
[White "Good_Knight_Kiss"]
[Black "MKlose11"]
[Result "0-1"]
[WhiteElo "2450"]
[BlackElo "2602"]
[TimeControl "180+1"]
[EndTime "14:56:03 PDT"]
[Termination "MKlose11 won on time"]

1. e4 {[%clk 0:03:00.9]} 1... e6 {[%clk 0:02:56]} 2. d4 {[%clk 0:03:00.8]} 2...
d5 {[%clk 0:02:54.1]} 3. Nc3 {[%clk 0:03:01.4]} 3... Bb4 {[%clk 0:02:53.5]} 4.
exd5 {[%clk 0:03:01.1]} 4... exd5 {[%clk 0:02:52.7]} 5. Bd3 {[%clk 0:03:01.7]}
5... Nc6 {[%clk 0:02:51.5]} 6. a3 {[%clk 0:03:00.5]} 6... Bxc3+ {[%clk
0:02:51.2]} 7. bxc3 {[%clk 0:03:01.4]} 7... Nce7 {[%clk 0:02:51.5]} 8. Qf3
{[%clk 0:03:01.1]} 8... Nf6 {[%clk 0:02:50.7]} 9. h3 {[%clk 0:02:58.3]} 9... Ne4
{[%clk 0:02:50.4]} 10. Bxe4 {[%clk 0:02:48.6]} 10... dxe4 {[%clk 0:02:49.1]} 11.
Qxe4 {[%clk 0:02:49.4]} 11... c6 {[%clk 0:02:46.3]} 12. Nf3 {[%clk 0:02:35]}
12... O-O {[%clk 0:02:42.2]} 13. O-O {[%clk 0:02:30.4]} 13... Bf5 {[%clk
0:02:39]} 14. Qe2 {[%clk 0:02:30.4]} 14... Re8 {[%clk 0:02:37.6]} 15. Bg5 {[%clk
0:01:52.3]} 15... f6 {[%clk 0:02:35]} 16. Be3 {[%clk 0:01:48.4]} 16... Qd5
{[%clk 0:02:25.6]} 17. c4 {[%clk 0:01:24]} 17... Qa5 {[%clk 0:02:24.9]} 18. Rfd1
{[%clk 0:01:15.1]} 18... Qa4 {[%clk 0:02:18.8]} 19. c3 {[%clk 0:01:08.7]} 19...
Be6 {[%clk 0:02:10.1]} 20. Nd2 {[%clk 0:01:01.3]} 20... Rad8 {[%clk 0:02:00.9]}
21. Rdb1 {[%clk 0:00:58.4]} 21... b6 {[%clk 0:01:59.4]} 22. Rb4 {[%clk
0:00:56.8]} 22... Qc2 {[%clk 0:01:58.1]} 23. Qd1 {[%clk 0:00:45.2]} 23... Qg6
{[%clk 0:01:53.5]} 24. Qf3 {[%clk 0:00:37]} 24... Nf5 {[%clk 0:01:47.6]} 25.
Qxc6 {[%clk 0:00:31.8]} 25... Nxe3 {[%clk 0:01:44.8]} 26. fxe3 {[%clk
0:00:32.3]} 26... Bxh3 {[%clk 0:01:44.7]} 27. Qf3 {[%clk 0:00:30.2]} 27... Bg4
{[%clk 0:01:41.9]} 28. Qg3 {[%clk 0:00:29.9]} 28... h5 {[%clk 0:01:41.3]} 29. a4
{[%clk 0:00:25.2]} 29... Qd3 {[%clk 0:01:41]} 30. Nf1 {[%clk 0:00:24.1]} 30...
Qxc3 {[%clk 0:01:41]} 31. Rab1 {[%clk 0:00:20.1]} 31... Qc2 {[%clk 0:01:16.5]}
32. R1b2 {[%clk 0:00:17.1]} 32... Qf5 {[%clk 0:01:12.7]} 33. Rb5 {[%clk
0:00:15.4]} 33... Qg6 {[%clk 0:01:09.8]} 34. a5 {[%clk 0:00:13.2]} 34... bxa5
{[%clk 0:01:08.5]} 35. Rxa5 {[%clk 0:00:12.4]} 35... Rd7 {[%clk 0:01:08.7]} 36.
c5 {[%clk 0:00:10.5]} 36... Rde7 {[%clk 0:01:01.8]} 37. d5 {[%clk 0:00:08.8]}
37... Re5 {[%clk 0:00:57.4]} 38. Rxa7 {[%clk 0:00:04.2]} 38... Rg5 {[%clk
0:00:57]} 39. Qc7 {[%clk 0:00:03.1]} 39... Bf3 {[%clk 0:00:53.5]} 40. d6 {[%clk
0:00:01.5]} 40... Rxg2+ {[%clk 0:00:52.5]} 0-1

[Event "Late-Titled-Tuesday-Blitz-April-23-2024"]
[Site "Chess.com"]
[Date "2024.04.23"]
[Round "5"]
[White "2Coaches1Profile"]
[Black "ubdip"]
[Result "1-0"]
[WhiteElo "2556"]
[BlackElo "2431"]
[TimeControl "180+1"]
[EndTime "14:56:04 PDT"]
[Termination "2Coaches1Profile won on time"]

1. d4 {[%clk 0:03:00.9]} 1... d5 {[%clk 0:02:59.4]} 2. Nf3 {[%clk 0:03:00.4]}
2... Nf6 {[%clk 0:02:59.3]} 3. Nbd2 {[%clk 0:02:59.7]} 3... Bf5 {[%clk
0:02:58.8]} 4. e3 {[%clk 0:02:59.5]} 4... e6 {[%clk 0:02:58.8]} 5. Ne5 {[%clk
0:02:59.7]} 5... Nbd7 {[%clk 0:02:58.5]} 6. g4 {[%clk 0:03:00.1]} 6... Bg6
{[%clk 0:02:58.2]} 7. h4 {[%clk 0:02:57.7]} 7... h6 {[%clk 0:02:34.2]} 8. Nxg6
{[%clk 0:02:54.9]} 8... fxg6 {[%clk 0:02:35.1]} 9. Bd3 {[%clk 0:02:54.3]} 9...
Kf7 {[%clk 0:02:34.5]} 10. c4 {[%clk 0:02:45.7]} 10... Bd6 {[%clk 0:02:22.6]}
11. Qc2 {[%clk 0:02:43.4]} 11... Nf8 {[%clk 0:02:21.9]} 12. c5 {[%clk
0:02:36.5]} 12... Be7 {[%clk 0:02:21.8]} 13. f3 {[%clk 0:02:29.8]} 13... N6d7
{[%clk 0:02:09.1]} 14. h5 {[%clk 0:02:22.6]} 14... g5 {[%clk 0:02:00.9]} 15. b3
{[%clk 0:01:59]} 15... Bf6 {[%clk 0:01:59.8]} 16. Bb2 {[%clk 0:01:55.7]} 16...
c6 {[%clk 0:01:58.2]} 17. f4 {[%clk 0:01:46.9]} 17... Qc7 {[%clk 0:01:53.9]} 18.
O-O {[%clk 0:01:39.6]} 18... Ke7 {[%clk 0:01:48.7]} 19. Rf3 {[%clk 0:01:36.2]}
19... Re8 {[%clk 0:01:42.3]} 20. Raf1 {[%clk 0:01:33.9]} 20... Kd8 {[%clk
0:01:38.4]} 21. b4 {[%clk 0:01:34]} 21... Kc8 {[%clk 0:01:38]} 22. a4 {[%clk
0:01:33.8]} 22... Kd8 {[%clk 0:01:15.2]} 23. b5 {[%clk 0:01:33.4]} 23... Kc8
{[%clk 0:01:12.9]} 24. Nb3 {[%clk 0:01:30.8]} 24... Nb8 {[%clk 0:01:11.9]} 25.
Bc3 {[%clk 0:01:28.1]} 25... Qe7 {[%clk 0:01:04.3]} 26. a5 {[%clk 0:01:24.9]}
26... Nfd7 {[%clk 0:01:01.8]} 27. a6 {[%clk 0:01:23.2]} 27... bxa6 {[%clk
0:00:51.9]} 28. bxa6 {[%clk 0:01:10.4]} 28... Ref8 {[%clk 0:00:29.8]} 29. Qb2
{[%clk 0:01:03.7]} 29... gxf4 {[%clk 0:00:23.9]} 30. exf4 {[%clk 0:01:03.2]}
30... Qd8 {[%clk 0:00:19.1]} 31. Rb1 {[%clk 0:00:55.4]} 31... Bh4 {[%clk
0:00:14.8]} 32. Ba5 {[%clk 0:00:42.8]} 32... Qf6 {[%clk 0:00:13.5]} 33. Nd2
{[%clk 0:00:39.6]} 33... Nb6 {[%clk 0:00:05.6]} 34. cxb6 {[%clk 0:00:38.4]} 1-0

[Event "Late-Titled-Tuesday-Blitz-April-23-2024"]
[Site "Chess.com"]
[Date "2024.04.23"]
[Round "5"]
[White "yaguigor"]
[Black "CarlosjPineror"]
[Result "0-1"]
[WhiteElo "2567"]
[BlackElo "2775"]
[TimeControl "180+1"]
[EndTime "14:56:05 PDT"]
[Termination "CarlosjPineror won by resignation"]

1. e4 {[%clk 0:02:54.9]} 1... c5 {[%clk 0:03:00]} 2. Nf3 {[%clk 0:02:53.9]} 2...
e6 {[%clk 0:03:00.4]} 3. d4 {[%clk 0:02:54.5]} 3... cxd4 {[%clk 0:03:01.3]} 4.
Nxd4 {[%clk 0:02:54.6]} 4... a6 {[%clk 0:03:01.9]} 5. Bd3 {[%clk 0:02:53.6]}
5... Qc7 {[%clk 0:03:02.5]} 6. O-O {[%clk 0:02:52.9]} 6... Nf6 {[%clk
0:03:03.1]} 7. Qe2 {[%clk 0:02:51.5]} 7... d6 {[%clk 0:03:03.2]} 8. c4 {[%clk
0:02:50.9]} 8... Be7 {[%clk 0:03:03.8]} 9. Nc3 {[%clk 0:02:50.7]} 9... Nbd7
{[%clk 0:03:04]} 10. Rd1 {[%clk 0:02:48.8]} 10... b6 {[%clk 0:03:03.8]} 11. Nf3
{[%clk 0:02:44.5]} 11... Bb7 {[%clk 0:03:03.7]} 12. Bf4 {[%clk 0:02:42.3]} 12...
Ne5 {[%clk 0:03:04]} 13. Nxe5 {[%clk 0:02:40.1]} 13... dxe5 {[%clk 0:03:04.9]}
14. Be3 {[%clk 0:02:40.3]} 14... O-O {[%clk 0:03:04.1]} 15. Rac1 {[%clk
0:02:33.8]} 15... Bc5 {[%clk 0:02:39.3]} 16. a3 {[%clk 0:02:27.1]} 16... Rad8
{[%clk 0:02:26.7]} 17. Bxc5 {[%clk 0:02:22.4]} 17... bxc5 {[%clk 0:02:20.9]} 18.
b4 {[%clk 0:02:21.3]} 18... Rd4 {[%clk 0:02:17.7]} 19. f3 {[%clk 0:02:15.3]}
19... cxb4 {[%clk 0:02:01.4]} 20. axb4 {[%clk 0:02:12.5]} 20... Qb6 {[%clk
0:02:02]} 21. c5 {[%clk 0:02:09.9]} 21... Qxb4 {[%clk 0:02:01.8]} 22. Qe3 {[%clk
0:01:54.7]} 22... Qxc5 {[%clk 0:01:39.2]} 23. Ne2 {[%clk 0:01:53.2]} 23... Qd6
{[%clk 0:01:36.7]} 24. Nxd4 {[%clk 0:01:52.6]} 24... exd4 {[%clk 0:01:37.6]} 25.
e5 {[%clk 0:01:48.6]} 25... Qb6 {[%clk 0:01:33.9]} 26. Qf2 {[%clk 0:01:45]}
26... Nd5 {[%clk 0:01:34.2]} 27. Be4 {[%clk 0:01:41.9]} 27... a5 {[%clk
0:01:22.7]} 28. Qxd4 {[%clk 0:01:36.9]} 28... Qd8 {[%clk 0:01:22]} 29. Ra1
{[%clk 0:01:29.8]} 29... h6 {[%clk 0:01:18.9]} 30. Qc5 {[%clk 0:01:26.3]} 30...
Qg5 {[%clk 0:01:16.6]} 31. Bxd5 {[%clk 0:01:23.6]} 31... Bxd5 {[%clk 0:01:11.2]}
32. Rxd5 {[%clk 0:01:12.6]} 32... exd5 {[%clk 0:01:12.1]} 33. Qxd5 {[%clk
0:01:11.5]} 33... Qe3+ {[%clk 0:01:06.5]} 34. Kf1 {[%clk 0:01:05.9]} 34... a4
{[%clk 0:00:55.5]} 35. Qe4 {[%clk 0:00:50.4]} 35... Qxe4 {[%clk 0:00:51.8]} 36.
fxe4 {[%clk 0:00:49.5]} 36... Ra8 {[%clk 0:00:52.7]} 37. Ra3 {[%clk 0:00:48.9]}
37... Kf8 {[%clk 0:00:52.8]} 38. Ke2 {[%clk 0:00:49.1]} 38... Ke7 {[%clk
0:00:53.7]} 39. Kd3 {[%clk 0:00:49.3]} 39... Ke6 {[%clk 0:00:54.6]} 40. Kd4
{[%clk 0:00:48.5]} 40... Ra5 {[%clk 0:00:54.5]} 41. h4 {[%clk 0:00:46.6]} 41...
h5 {[%clk 0:00:54.5]} 42. g3 {[%clk 0:00:45.8]} 42... g6 {[%clk 0:00:55]} 43.
Kc4 {[%clk 0:00:32.5]} 43... Kxe5 {[%clk 0:00:54.7]} 44. Kb4 {[%clk 0:00:31.3]}
44... Ra8 {[%clk 0:00:54.6]} 45. Ra1 {[%clk 0:00:21.4]} 45... a3 {[%clk
0:00:54]} 46. Kb3 {[%clk 0:00:21]} 46... a2 {[%clk 0:00:53.5]} 0-1